[Event "Titled Tuesday Blitz June 6 Late 2023"]
[White "Figorito, Nick"]
[Black "Alimpic, Aleksa"]
[WhiteFideId "30923689"]
[BlackFideId "974323"]
[WhiteElo "2324"]
[BlackElo "2298"]
[Result "0-1"]
[Round "9"]
[TimeControl "180+2"]
[Date "2023.06.07"]
[WhiteClock "0:00:33"]
[BlackClock "0:00:17"]
[Board "115"]

1. Nf3 {[%clk 0:03:00]}  Nf6 {[%clk 0:02:48]} 2. g3 {[%clk 0:03:01]}  d5 {[%clk 0:02:47]} 3. Bg2 {[%clk 0:03:02]}  Bg4 {[%clk 0:02:46]} 4. O-O {[%clk 0:03:02]}  c6 {[%clk 0:02:47]} 5. b4 {[%clk 0:02:58]}  Nbd7 {[%clk 0:02:44]} 6. a4 {[%clk 0:02:49]}  e5 {[%clk 0:02:43]} 7. b5 {[%clk 0:02:48]}  Bd6 {[%clk 0:02:43]} 8. Ba3 {[%clk 0:02:47]}  Bxa3 {[%clk 0:02:41]} 9. Nxa3 {[%clk 0:02:48]}  O-O {[%clk 0:02:40]} 10. c4 {[%clk 0:02:47]}  Qe7 {[%clk 0:02:32]} 11. bxc6 {[%clk 0:02:36]}  bxc6 {[%clk 0:02:33]} 12. cxd5 {[%clk 0:02:36]}  cxd5 {[%clk 0:02:33]} 13. Nb5 {[%clk 0:02:37]}  a6 {[%clk 0:02:25]} 14. Nc3 {[%clk 0:02:32]}  d4 {[%clk 0:02:25]} 15. Nb1 {[%clk 0:02:23]}  Rab8 {[%clk 0:02:20]} 16. d3 {[%clk 0:02:21]}  h6 {[%clk 0:01:39]} 17. Nbd2 {[%clk 0:02:20]}  Be6 {[%clk 0:01:29]} 18. Rb1 {[%clk 0:02:00]}  Nd5 {[%clk 0:01:28]} 19. Rxb8 {[%clk 0:01:57]}  Rxb8 {[%clk 0:01:29]} 20. Nc4 {[%clk 0:01:46]}  Nc3 {[%clk 0:01:23]} 21. Qc2 {[%clk 0:01:44]}  Qc5 {[%clk 0:01:13]} 22. Nb2 {[%clk 0:01:10]}  Bb3 {[%clk 0:00:49]} 23. Qd2 {[%clk 0:01:08]}  Bd5 {[%clk 0:00:48]} 24. Ra1 {[%clk 0:00:56]}  Qb4 {[%clk 0:00:42]} 25. Nd1 {[%clk 0:00:52]}  a5 {[%clk 0:00:31]} 26. Ne1 {[%clk 0:00:36]}  Bxg2 {[%clk 0:00:24]} 27. Kxg2 {[%clk 0:00:37]}  Nf6 {[%clk 0:00:19]} 28. Nc2 {[%clk 0:00:34]}  Qb7+ {[%clk 0:00:18]} 29. Kg1 {[%clk 0:00:32]}  Nfd5 {[%clk 0:00:18]} 30. Nxc3 {[%clk 0:00:31]}  Nxc3 {[%clk 0:00:18]} 31. Na3 {[%clk 0:00:26]}  Qb2 {[%clk 0:00:15]} 32. Qxb2 {[%clk 0:00:17]}  Rxb2 {[%clk 0:00:16]} 33. Nc4 {[%clk 0:00:18]}  Rxe2 {[%clk 0:00:11]} 34. Nxa5 {[%clk 0:00:18]}  e4 {[%clk 0:00:05]} 35. dxe4 {[%clk 0:00:16]}  d3 {[%clk 0:00:05]} 36. Nc4 {[%clk 0:00:17]}  d2 {[%clk 0:00:04]} 37. Nxd2 {[%clk 0:00:17]}  Rxd2 {[%clk 0:00:04]} 38. a5 {[%clk 0:00:18]}  Rd7 {[%clk 0:00:03]} 39. a6 {[%clk 0:00:18]}  Ra7 {[%clk 0:00:03]} 40. f3 {[%clk 0:00:18]}  Nb5 {[%clk 0:00:01]} 41. Rb1 {[%clk 0:00:18]}  Nc7 {[%clk 0:00:02]} 42. Rb7 {[%clk 0:00:17]}  Rxb7 {[%clk 0:00:02]} 43. axb7 {[%clk 0:00:17]}  Na6 {[%clk 0:00:03]} 44. Kf2 {[%clk 0:00:17]}  Kf8 {[%clk 0:00:03]} 45. Ke3 {[%clk 0:00:18]}  Ke7 {[%clk 0:00:04]} 46. Kd4 {[%clk 0:00:19]}  Kd6 {[%clk 0:00:05]} 47. f4 {[%clk 0:00:18]}  f6 {[%clk 0:00:05]} 48. g4 {[%clk 0:00:09]}  g5 {[%clk 0:00:04]} 49. e5+ {[%clk 0:00:07]}  fxe5+ {[%clk 0:00:04]} 50. fxe5+ {[%clk 0:00:08]}  Ke6 {[%clk 0:00:05]} 51. Ke4 {[%clk 0:00:08]}  Nb8 {[%clk 0:00:05]} 52. h3 {[%clk 0:00:07]}  Nd7 {[%clk 0:00:05]} 53. Kd4 {[%clk 0:00:07]}  Nb8 {[%clk 0:00:05]} 54. Kc5 {[%clk 0:00:07]}  Kxe5 {[%clk 0:00:05]} 55. Kb6 {[%clk 0:00:08]}  Kd6 {[%clk 0:00:05]} 56. Ka7 {[%clk 0:00:08]}  Kc7 {[%clk 0:00:05]} 57. Ka8 {[%clk 0:00:07]}  Nc6 {[%clk 0:00:04]} 58. b8=Q+ {[%clk 0:00:03]}  Nxb8 {[%clk 0:00:04]} 59. Ka7 {[%clk 0:00:04]}  Nc6+ {[%clk 0:00:03]} 60. Ka6 {[%clk 0:00:04]}  Kd6 {[%clk 0:00:04]} 61. Kb5 {[%clk 0:00:05]}  Kd5 {[%clk 0:00:04]} 62. Kb6 {[%clk 0:00:06]}  Ne5 {[%clk 0:00:04]} 63. Kc7 {[%clk 0:00:06]}  Ke4 {[%clk 0:00:05]} 64. Kd8 {[%clk 0:00:07]}  Nf3 {[%clk 0:00:05]} 65. Ke7 {[%clk 0:00:08]}  Kf4 {[%clk 0:00:05]} 66. Kf6 {[%clk 0:00:09]}  Kg3 {[%clk 0:00:05]} 67. Kg6 {[%clk 0:00:10]}  Kh4 {[%clk 0:00:05]} 68. Kxh6 {[%clk 0:00:11]}  Ng1 {[%clk 0:00:06]} 69. Kg6 {[%clk 0:00:11]}  Nxh3 {[%clk 0:00:07]} 70. Kf5 {[%clk 0:00:12]}  Nf2 {[%clk 0:00:07]} 71. Ke5 {[%clk 0:00:11]}  Nxg4+ {[%clk 0:00:08]} 72. Ke4 {[%clk 0:00:12]}  Nf6+ {[%clk 0:00:09]} 73. Kf3 {[%clk 0:00:13]}  Kh3 {[%clk 0:00:08]} 74. Kf2 {[%clk 0:00:13]}  g4 {[%clk 0:00:09]} 75. Kg1 {[%clk 0:00:14]}  g3 {[%clk 0:00:09]} 76. Kh1 {[%clk 0:00:15]}  g2+ {[%clk 0:00:10]} 77. Kg1 {[%clk 0:00:16]}  Ng8 {[%clk 0:00:11]} 78. Kf2 {[%clk 0:00:16]}  Kh2 {[%clk 0:00:11]} 79. Kf3 {[%clk 0:00:17]}  g1=Q {[%clk 0:00:12]} 80. Kf4 {[%clk 0:00:18]}  Nh6 {[%clk 0:00:12]} 81. Ke4 {[%clk 0:00:17]}  Ng4 {[%clk 0:00:12]} 82. Kd3 {[%clk 0:00:18]}  Nf2+ {[%clk 0:00:13]} 83. Ke3 {[%clk 0:00:19]}  Nh1+ {[%clk 0:00:14]} 84. Ke2 {[%clk 0:00:20]}  Qg2+ {[%clk 0:00:13]} 85. Ke1 {[%clk 0:00:20]}  Qf2+ {[%clk 0:00:12]} 86. Kd1 {[%clk 0:00:21]}  Kg3 {[%clk 0:00:13]} 87. Kc1 {[%clk 0:00:22]}  Kf3 {[%clk 0:00:13]} 88. Kb1 {[%clk 0:00:22]}  Ke3 {[%clk 0:00:14]} 89. Ka1 {[%clk 0:00:23]}  Kd3 {[%clk 0:00:15]} 90. Kb1 {[%clk 0:00:24]}  Kc3 {[%clk 0:00:16]} 91. Ka1 {[%clk 0:00:24]}  Ng3 {[%clk 0:00:16]} 92. Kb1 {[%clk 0:00:24]}  Nh5 {[%clk 0:00:17]} 93. Ka1 {[%clk 0:00:25]}  Ng7 {[%clk 0:00:18]} 94. Kb1 {[%clk 0:00:26]}  Nf5 {[%clk 0:00:19]} 95. Ka1 {[%clk 0:00:26]}  Ne7 {[%clk 0:00:20]} 96. Kb1 {[%clk 0:00:27]}  Nd5 {[%clk 0:00:21]} 97. Ka1 {[%clk 0:00:28]}  Nc7 {[%clk 0:00:22]} 98. Kb1 {[%clk 0:00:29]}  Nb5 {[%clk 0:00:22]} 99. Ka1 {[%clk 0:00:30]}  Nd4 {[%clk 0:00:20]} 100. Kb1 {[%clk 0:00:31]}  Qg2 {[%clk 0:00:17]} 101. Ka1 {[%clk 0:00:32]}  Nb3+ {[%clk 0:00:17]} 102. Kb1 {[%clk 0:00:33]}  Qb2# {[%clk 0:00:17]} 0-1


[Site "https://www.chess.com"]

[Event "Titled Tuesday Blitz June 6 Late 2023"]
[White "Lazavik, Denis"]
[Black "Svane, Frederik"]
[WhiteFideId "13515110"]
[BlackFideId "12923044"]
[WhiteElo "2560"]
[BlackElo "2502"]
[Result "1-0"]
[Round "10"]
[TimeControl "180+2"]
[Date "2023.06.07"]
[WhiteClock "0:01:11"]
[BlackClock "0:00:21"]
[Board "5"]

1. d4 {[%clk 0:03:00]}  d5 {[%clk 0:03:00]} 2. c4 {[%clk 0:03:01]}  e6 {[%clk 0:03:00]} 3. Nf3 {[%clk 0:03:01]}  a6 {[%clk 0:02:59]} 4. cxd5 {[%clk 0:03:01]}  exd5 {[%clk 0:02:59]} 5. Nc3 {[%clk 0:03:01]}  Nf6 {[%clk 0:02:58]} 6. Bg5 {[%clk 0:03:02]}  Be6 {[%clk 0:02:58]} 7. e3 {[%clk 0:03:03]}  Nbd7 {[%clk 0:02:58]} 8. Bd3 {[%clk 0:03:03]}  c6 {[%clk 0:02:59]} 9. O-O {[%clk 0:03:02]}  Bd6 {[%clk 0:02:58]} 10. Bf4 {[%clk 0:03:01]}  Qb8 {[%clk 0:02:58]} 11. Bxd6 {[%clk 0:03:02]}  Qxd6 {[%clk 0:02:58]} 12. Qc2 {[%clk 0:03:02]}  O-O {[%clk 0:02:57]} 13. h3 {[%clk 0:03:03]}  Rfe8 {[%clk 0:02:27]} 14. Rfc1 {[%clk 0:03:01]}  g6 {[%clk 0:02:24]} 15. Rab1 {[%clk 0:02:54]}  Nh5 {[%clk 0:02:23]} 16. Na4 {[%clk 0:02:52]}  Ng7 {[%clk 0:02:22]} 17. b4 {[%clk 0:02:51]}  Bf5 {[%clk 0:02:21]} 18. Nc5 {[%clk 0:02:51]}  Bxd3 {[%clk 0:02:20]} 19. Qxd3 {[%clk 0:02:51]}  Rab8 {[%clk 0:02:14]} 20. a4 {[%clk 0:02:51]}  Nf5 {[%clk 0:02:07]} 21. b5 {[%clk 0:02:40]}  axb5 {[%clk 0:02:07]} 22. axb5 {[%clk 0:02:39]}  Nxc5 {[%clk 0:01:34]} 23. Rxc5 {[%clk 0:02:37]}  Ne7 {[%clk 0:01:25]} 24. Rbc1 {[%clk 0:02:35]}  Ra8 {[%clk 0:01:18]} 25. bxc6 {[%clk 0:02:33]}  bxc6 {[%clk 0:01:18]} 26. Ne5 {[%clk 0:02:33]}  Rec8 {[%clk 0:01:17]} 27. Qc2 {[%clk 0:02:27]}  Ra6 {[%clk 0:01:15]} 28. Nd3 {[%clk 0:02:26]}  Rb8 {[%clk 0:01:12]} 29. Qd2 {[%clk 0:02:22]}  Rba8 {[%clk 0:01:09]} 30. Nb4 {[%clk 0:02:18]}  Rb6 {[%clk 0:01:04]} 31. Qc3 {[%clk 0:02:19]}  Rc8 {[%clk 0:00:59]} 32. Qa3 {[%clk 0:02:17]}  Rcb8 {[%clk 0:00:58]} 33. Nc2 {[%clk 0:01:57]}  Kg7 {[%clk 0:00:58]} 34. Ne1 {[%clk 0:01:56]}  h5 {[%clk 0:00:57]} 35. Nf3 {[%clk 0:01:55]}  Rb3 {[%clk 0:00:57]} 36. Qa5 {[%clk 0:01:48]}  R3b5 {[%clk 0:00:56]} 37. Qd2 {[%clk 0:01:39]}  Rb2 {[%clk 0:00:55]} 38. R5c2 {[%clk 0:01:38]}  Rxc2 {[%clk 0:00:55]} 39. Qxc2 {[%clk 0:01:39]}  Rb5 {[%clk 0:00:44]} 40. Qc3 {[%clk 0:01:33]}  Qb4 {[%clk 0:00:23]} 41. Ne5 {[%clk 0:01:32]}  Qxc3 {[%clk 0:00:23]} 42. Rxc3 {[%clk 0:01:33]}  Rb1+ {[%clk 0:00:22]} 43. Kh2 {[%clk 0:01:33]}  Rb2 {[%clk 0:00:22]} 44. Nd3 {[%clk 0:01:18]}  Rd2 {[%clk 0:00:21]} 45. Kg1 {[%clk 0:01:18]}  Rd1+ {[%clk 0:00:21]} 46. Kh2 {[%clk 0:01:18]}  Rd2 {[%clk 0:00:22]} 47. g4 {[%clk 0:01:12]}  h4 {[%clk 0:00:21]} 48. Kg2 {[%clk 0:01:12]}  Rb2 {[%clk 0:00:21]} 49. Nxb2 {[%clk 0:01:11]} 1-0


[Site "https://www.chess.com"]

[Event "Titled Tuesday Blitz June 6 Late 2023"]
[White "Andreikin, Dmitry"]
[Black "Moroni, Luca Jr"]
[WhiteFideId "4158814"]
[BlackFideId "865834"]
[WhiteElo "2736"]
[BlackElo "2569"]
[Result "1-0"]
[Round "10"]
[TimeControl "180+2"]
[Date "2023.06.07"]
[WhiteClock "0:00:54"]
[BlackClock "0:00:53"]
[Board "6"]

1. d4 {[%clk 0:03:00]}  g6 {[%clk 0:03:00]} 2. e4 {[%clk 0:03:00]}  Bg7 {[%clk 0:03:01]} 3. Nc3 {[%clk 0:02:59]}  a6 {[%clk 0:03:01]} 4. h4 {[%clk 0:02:58]}  h6 {[%clk 0:03:00]} 5. h5 {[%clk 0:02:58]}  g5 {[%clk 0:03:00]} 6. f4 {[%clk 0:02:58]}  gxf4 {[%clk 0:03:01]} 7. Bxf4 {[%clk 0:02:58]}  d6 {[%clk 0:03:01]} 8. Qd2 {[%clk 0:02:50]}  Nc6 {[%clk 0:03:01]} 9. Nf3 {[%clk 0:02:47]}  Bg4 {[%clk 0:03:00]} 10. d5 {[%clk 0:02:47]}  Ne5 {[%clk 0:02:56]} 11. Nxe5 {[%clk 0:02:42]}  dxe5 {[%clk 0:02:54]} 12. Be3 {[%clk 0:02:41]}  Nf6 {[%clk 0:02:54]} 13. Be2 {[%clk 0:02:41]}  Qd7 {[%clk 0:02:53]} 14. O-O-O {[%clk 0:02:40]}  O-O-O {[%clk 0:02:53]} 15. Rdf1 {[%clk 0:02:39]}  Rdg8 {[%clk 0:02:51]} 16. Qd3 {[%clk 0:02:29]}  Bxe2 {[%clk 0:02:49]} 17. Qxe2 {[%clk 0:02:23]}  Ng4 {[%clk 0:02:49]} 18. Bd2 {[%clk 0:02:03]}  Bf6 {[%clk 0:02:42]} 19. Rf5 {[%clk 0:02:00]}  Rh7 {[%clk 0:02:38]} 20. Kb1 {[%clk 0:01:58]}  e6 {[%clk 0:02:29]} 21. Rf3 {[%clk 0:01:48]}  Bg5 {[%clk 0:02:27]} 22. Rd1 {[%clk 0:01:42]}  Bxd2 {[%clk 0:02:22]} 23. Rxd2 {[%clk 0:01:43]}  Qe7 {[%clk 0:02:18]} 24. Na4 {[%clk 0:01:31]}  Kb8 {[%clk 0:02:15]} 25. Rb3 {[%clk 0:01:28]}  Ka8 {[%clk 0:02:07]} 26. Qc4 {[%clk 0:01:14]}  Nf6 {[%clk 0:01:49]} 27. Rxb7 {[%clk 0:01:09]}  Kxb7 {[%clk 0:01:46]} 28. Nc5+ {[%clk 0:01:09]}  Qxc5 {[%clk 0:01:13]} 29. Qxc5 {[%clk 0:01:10]}  Rhg7 {[%clk 0:01:06]} 30. Qc6+ {[%clk 0:01:04]}  Kb8 {[%clk 0:01:05]} 31. d6 {[%clk 0:01:02]}  Rxg2 {[%clk 0:00:56]} 32. Qxc7+ {[%clk 0:00:54]}  Ka8 {[%clk 0:00:52]} 33. Rxg2 {[%clk 0:00:54]}  Rxg2 {[%clk 0:00:53]} 34. b4 {[%clk 0:00:54]} 1-0


[Site "https://www.chess.com"]

[Event "Titled Tuesday Blitz June 6 Late 2023"]
[White "Bortnyk, Mykola"]
[Black "Fernandez Guillen, Ernesto J."]
[WhiteFideId "14120836"]
[BlackFideId "3512428"]
[WhiteElo "2592"]
[BlackElo "2434"]
[Result "1-0"]
[Round "10"]
[TimeControl "180+2"]
[Date "2023.06.07"]
[WhiteClock "0:00:06"]
[BlackClock "0:00:04"]
[Board "7"]

1. e4 {[%clk 0:03:00]}  e5 {[%clk 0:02:58]} 2. Nf3 {[%clk 0:03:00]}  Nc6 {[%clk 0:02:59]} 3. Bb5 {[%clk 0:03:00]}  f5 {[%clk 0:02:57]} 4. Nc3 {[%clk 0:02:57]}  Nf6 {[%clk 0:02:55]} 5. Qe2 {[%clk 0:02:56]}  Qe7 {[%clk 0:02:52]} 6. exf5 {[%clk 0:02:49]}  e4 {[%clk 0:02:48]} 7. Bxc6 {[%clk 0:02:37]}  bxc6 {[%clk 0:02:49]} 8. Ng5 {[%clk 0:02:31]}  d5 {[%clk 0:02:44]} 9. Ne6 {[%clk 0:02:28]}  Bxe6 {[%clk 0:02:40]} 10. fxe6 {[%clk 0:02:29]}  Qxe6 {[%clk 0:02:41]} 11. d3 {[%clk 0:02:29]}  Bb4 {[%clk 0:02:29]} 12. Bd2 {[%clk 0:02:29]}  O-O {[%clk 0:02:24]} 13. O-O {[%clk 0:02:25]}  Rae8 {[%clk 0:02:23]} 14. dxe4 {[%clk 0:02:11]}  Bxc3 {[%clk 0:01:48]} 15. Bxc3 {[%clk 0:02:10]}  Nxe4 {[%clk 0:01:49]} 16. Ba5 {[%clk 0:01:56]}  Qf6 {[%clk 0:01:38]} 17. Qa6 {[%clk 0:01:35]}  Re6 {[%clk 0:01:33]} 18. Bxc7 {[%clk 0:01:29]}  Nd2 {[%clk 0:01:26]} 19. Rfd1 {[%clk 0:01:06]}  Qxf2+ {[%clk 0:01:23]} 20. Kh1 {[%clk 0:01:07]}  Re2 {[%clk 0:00:42]} 21. Rg1 {[%clk 0:01:06]}  Ne4 {[%clk 0:00:40]} 22. h3 {[%clk 0:00:58]}  Rf3 {[%clk 0:00:12]} 23. Qc8+ {[%clk 0:00:56]}  Rf8 {[%clk 0:00:06]} 24. Qe6+ {[%clk 0:00:38]}  Qf7 {[%clk 0:00:07]} 25. Qxf7+ {[%clk 0:00:23]}  Rxf7 {[%clk 0:00:08]} 26. Bb8 {[%clk 0:00:20]}  Rb7 {[%clk 0:00:04]} 27. Bf4 {[%clk 0:00:16]}  Rxb2 {[%clk 0:00:04]} 28. a4 {[%clk 0:00:14]}  Rbxc2 {[%clk 0:00:04]} 29. Rab1 {[%clk 0:00:13]}  h6 {[%clk 0:00:05]} 30. Rb7 {[%clk 0:00:12]}  Kh7 {[%clk 0:00:05]} 31. Kh2 {[%clk 0:00:12]}  Nf6 {[%clk 0:00:05]} 32. Rxa7 {[%clk 0:00:09]}  Re4 {[%clk 0:00:05]} 33. Bd6 {[%clk 0:00:09]}  Ra2 {[%clk 0:00:04]} 34. Bf8 {[%clk 0:00:09]}  Ne8 {[%clk 0:00:05]} 35. Rf1 {[%clk 0:00:08]}  Re6 {[%clk 0:00:05]} 36. Rf3 {[%clk 0:00:07]}  Rg6 {[%clk 0:00:06]} 37. Rg3 {[%clk 0:00:07]}  Rxg3 {[%clk 0:00:06]} 38. Kxg3 {[%clk 0:00:08]}  Kg8 {[%clk 0:00:06]} 39. Bc5 {[%clk 0:00:08]}  Nf6 {[%clk 0:00:05]} 40. Bd4 {[%clk 0:00:09]}  Ne4+ {[%clk 0:00:05]} 41. Kf3 {[%clk 0:00:08]}  g5 {[%clk 0:00:05]} 42. g4 {[%clk 0:00:04]}  c5 {[%clk 0:00:06]} 43. Be5 {[%clk 0:00:05]}  c4 {[%clk 0:00:06]} 44. a5 {[%clk 0:00:04]}  c3 {[%clk 0:00:07]} 45. Ke3 {[%clk 0:00:03]}  c2 {[%clk 0:00:07]} 46. Rc7 {[%clk 0:00:04]}  Rxa5 {[%clk 0:00:06]} 47. Rxc2 {[%clk 0:00:03]}  Ra3+ {[%clk 0:00:07]} 48. Kd4 {[%clk 0:00:04]}  Rxh3 {[%clk 0:00:05]} 49. Kxd5 {[%clk 0:00:04]}  Ng3 {[%clk 0:00:02]} 50. Ke6 {[%clk 0:00:03]}  Nf1 {[%clk 0:00:02]} 51. Rc8+ {[%clk 0:00:04]}  Kh7 {[%clk 0:00:02]} 52. Rh8+ {[%clk 0:00:04]}  Kg6 {[%clk 0:00:03]} 53. Rg8+ {[%clk 0:00:05]}  Kh7 {[%clk 0:00:04]} 54. Rg7+ {[%clk 0:00:06]}  Kh8 {[%clk 0:00:04]} 55. Rf7+ {[%clk 0:00:07]}  Kg8 {[%clk 0:00:04]} 56. Rxf1 {[%clk 0:00:07]}  Rh4 {[%clk 0:00:04]} 57. Kf5 {[%clk 0:00:07]}  Rh3 {[%clk 0:00:04]} 58. Kg6 {[%clk 0:00:08]}  Re3 {[%clk 0:00:04]} 59. Ra1 {[%clk 0:00:07]}  Kf8 {[%clk 0:00:04]} 60. Bf6 {[%clk 0:00:07]}  Ke8 {[%clk 0:00:04]} 61. Ra7 {[%clk 0:00:07]}  Re6 {[%clk 0:00:04]} 62. Rh7 {[%clk 0:00:06]} 1-0


[Site "https://www.chess.com"]

[Event "Titled Tuesday Blitz June 6 Late 2023"]
[White "Ozer, Omer Faruk"]
[Black "Xiong, Jeffery"]
[WhiteFideId "6354564"]
[BlackFideId "2047640"]
[WhiteElo "2260"]
[BlackElo "2726"]
[Result "0-1"]
[Round "10"]
[TimeControl "180+2"]
[Date "2023.06.07"]
[WhiteClock "0:00:06"]
[BlackClock "0:01:48"]
[Board "10"]

1. e4 {[%clk 0:03:00]}  c6 {[%clk 0:02:59]} 2. d4 {[%clk 0:03:00]}  d5 {[%clk 0:02:59]} 3. e5 {[%clk 0:03:00]}  Bf5 {[%clk 0:02:59]} 4. Nc3 {[%clk 0:03:00]}  e6 {[%clk 0:02:53]} 5. g4 {[%clk 0:03:00]}  Bg6 {[%clk 0:02:53]} 6. Nge2 {[%clk 0:03:00]}  c5 {[%clk 0:02:45]} 7. Be3 {[%clk 0:02:58]}  Nc6 {[%clk 0:02:44]} 8. dxc5 {[%clk 0:02:56]}  h5 {[%clk 0:02:29]} 9. Nd4 {[%clk 0:02:38]}  hxg4 {[%clk 0:02:25]} 10. Bb5 {[%clk 0:02:37]}  Ne7 {[%clk 0:02:25]} 11. Qxg4 {[%clk 0:02:37]}  Qc7 {[%clk 0:02:21]} 12. f4 {[%clk 0:02:23]}  O-O-O {[%clk 0:02:21]} 13. Bxc6 {[%clk 0:02:14]}  Nxc6 {[%clk 0:02:12]} 14. Ncb5 {[%clk 0:01:42]}  Qa5+ {[%clk 0:02:09]} 15. Bd2 {[%clk 0:01:41]}  Qa6 {[%clk 0:02:09]} 16. Nxc6 {[%clk 0:00:39]}  bxc6 {[%clk 0:02:10]} 17. Nd6+ {[%clk 0:00:40]}  Bxd6 {[%clk 0:02:11]} 18. cxd6 {[%clk 0:00:41]}  Be4 {[%clk 0:02:12]} 19. O-O-O {[%clk 0:00:23]}  Qa4 {[%clk 0:02:04]} 20. Kb1 {[%clk 0:00:17]}  Qxc2+ {[%clk 0:02:04]} 21. Ka1 {[%clk 0:00:17]}  Bxh1 {[%clk 0:02:05]} 22. Rxh1 {[%clk 0:00:14]}  Qxd2 {[%clk 0:02:05]} 23. a3 {[%clk 0:00:09]}  Rxh2 {[%clk 0:01:53]} 24. Rxh2 {[%clk 0:00:09]}  Qxh2 {[%clk 0:01:54]} 25. Qxg7 {[%clk 0:00:08]}  Qxf4 {[%clk 0:01:53]} 26. Qg1 {[%clk 0:00:08]}  Qxe5 {[%clk 0:01:48]} 27. Qc5 {[%clk 0:00:06]}  Qxd6 {[%clk 0:01:48]} 28. Qxa7 {[%clk 0:00:06]}  d4 {[%clk 0:01:48]} 0-1


[Site "https://www.chess.com"]

[Event "Titled Tuesday Blitz June 6 Late 2023"]
[White "Najer, Evgeniy"]
[Black "Kollars, Dmitrij"]
[WhiteFideId "4118987"]
[BlackFideId "12909572"]
[WhiteElo "2545"]
[BlackElo "2584"]
[Result "0-1"]
[Round "10"]
[TimeControl "180+2"]
[Date "2023.06.07"]
[WhiteClock "0:00:02"]
[BlackClock "0:00:33"]
[Board "11"]

1. e4 {[%clk 0:02:41]}  e5 {[%clk 0:02:59]} 2. Nc3 {[%clk 0:02:38]}  Nf6 {[%clk 0:02:59]} 3. Bc4 {[%clk 0:02:38]}  Nxe4 {[%clk 0:02:59]} 4. Qh5 {[%clk 0:02:35]}  Nd6 {[%clk 0:02:58]} 5. Bb3 {[%clk 0:02:31]}  Be7 {[%clk 0:02:58]} 6. Nf3 {[%clk 0:02:16]}  Nc6 {[%clk 0:02:50]} 7. Nxe5 {[%clk 0:01:36]}  g6 {[%clk 0:02:47]} 8. Qe2 {[%clk 0:01:25]}  Nd4 {[%clk 0:02:39]} 9. Qd3 {[%clk 0:01:01]}  Nxb3 {[%clk 0:02:36]} 10. axb3 {[%clk 0:01:01]}  O-O {[%clk 0:02:33]} 11. O-O {[%clk 0:01:00]}  Bf6 {[%clk 0:02:24]} 12. f4 {[%clk 0:00:53]}  Nf5 {[%clk 0:02:19]} 13. g4 {[%clk 0:00:52]}  Ne7 {[%clk 0:02:16]} 14. Qg3 {[%clk 0:00:42]}  d6 {[%clk 0:02:11]} 15. Nf3 {[%clk 0:00:42]}  Bg7 {[%clk 0:02:08]} 16. d3 {[%clk 0:00:41]}  f5 {[%clk 0:02:05]} 17. g5 {[%clk 0:00:40]}  b6 {[%clk 0:02:04]} 18. Be3 {[%clk 0:00:28]}  c5 {[%clk 0:02:04]} 19. Rae1 {[%clk 0:00:21]}  Bb7 {[%clk 0:02:03]} 20. h4 {[%clk 0:00:20]}  Qd7 {[%clk 0:01:54]} 21. h5 {[%clk 0:00:20]}  Rae8 {[%clk 0:01:54]} 22. h6 {[%clk 0:00:19]}  Bh8 {[%clk 0:01:53]} 23. Kh2 {[%clk 0:00:18]}  Nc6 {[%clk 0:01:50]} 24. Qf2 {[%clk 0:00:18]}  Nb4 {[%clk 0:01:49]} 25. Kg3 {[%clk 0:00:16]}  Re7 {[%clk 0:01:49]} 26. Bc1 {[%clk 0:00:15]}  Rfe8 {[%clk 0:01:48]} 27. Rxe7 {[%clk 0:00:15]}  Rxe7 {[%clk 0:01:49]} 28. Re1 {[%clk 0:00:13]}  Kf7 {[%clk 0:01:27]} 29. Rxe7+ {[%clk 0:00:07]}  Qxe7 {[%clk 0:01:28]} 30. Ne1 {[%clk 0:00:03]}  Bd4 {[%clk 0:01:26]} 31. Qf1 {[%clk 0:00:04]}  Be3 {[%clk 0:01:06]} 32. Ne2 {[%clk 0:00:03]}  Bxc1 {[%clk 0:01:05]} 33. Nxc1 {[%clk 0:00:03]}  Qe3+ {[%clk 0:01:05]} 34. Nf3 {[%clk 0:00:04]}  Nxc2 {[%clk 0:01:02]} 35. Ne2 {[%clk 0:00:01]}  Qxd3 {[%clk 0:00:59]} 36. Qf2 {[%clk 0:00:01]}  Qxf3+ {[%clk 0:00:53]} 37. Qxf3 {[%clk 0:00:01]}  Bxf3 {[%clk 0:00:54]} 38. Kxf3 {[%clk 0:00:01]}  Nd4+ {[%clk 0:00:55]} 39. Nxd4 {[%clk 0:00:01]}  cxd4 {[%clk 0:00:56]} 40. b4 {[%clk 0:00:02]}  a6 {[%clk 0:00:56]} 41. Ke2 {[%clk 0:00:02]}  Ke6 {[%clk 0:00:53]} 42. b5 {[%clk 0:00:02]}  a5 {[%clk 0:00:33]} 43. b3 {[%clk 0:00:01]}  Kd5 {[%clk 0:00:33]} 44. Kd3 {[%clk 0:00:02]}  Kc5 {[%clk 0:00:33]} 0-1


[Site "https://www.chess.com"]

[Event "Titled Tuesday Blitz June 6 Late 2023"]
[White "Sun, Rick"]
[Black "Narayanan.S.L"]
[WhiteFideId "30909481"]
[BlackFideId "5058422"]
[WhiteElo "2169"]
[BlackElo "2563"]
[Result "0-1"]
[Round "10"]
[TimeControl "180+2"]
[Date "2023.06.07"]
[WhiteClock "0:00:06"]
[BlackClock "0:01:20"]
[Board "17"]

1. e4 {[%clk 0:03:00]}  f5 {[%clk 0:03:00]} 2. exf5 {[%clk 0:02:59]}  Nf6 {[%clk 0:03:01]} 3. d4 {[%clk 0:02:58]}  d5 {[%clk 0:02:54]} 4. Bd3 {[%clk 0:02:58]}  c5 {[%clk 0:02:54]} 5. c3 {[%clk 0:02:44]}  Nc6 {[%clk 0:02:54]} 6. Nf3 {[%clk 0:02:44]}  g6 {[%clk 0:02:55]} 7. fxg6 {[%clk 0:02:43]}  Bg4 {[%clk 0:02:55]} 8. gxh7 {[%clk 0:02:35]}  e5 {[%clk 0:02:55]} 9. Bg6+ {[%clk 0:02:27]}  Kd7 {[%clk 0:02:47]} 10. dxe5 {[%clk 0:02:24]}  Qe7 {[%clk 0:02:47]} 11. O-O {[%clk 0:02:20]}  Nxe5 {[%clk 0:02:45]} 12. Qa4+ {[%clk 0:02:11]}  Nc6 {[%clk 0:02:40]} 13. Re1 {[%clk 0:02:04]}  Qg7 {[%clk 0:02:29]} 14. Ne5+ {[%clk 0:01:54]}  Kc7 {[%clk 0:02:29]} 15. Bf4 {[%clk 0:01:04]}  Bd6 {[%clk 0:02:24]} 16. Nxg4 {[%clk 0:01:01]}  d4 {[%clk 0:02:05]} 17. Bxd6+ {[%clk 0:00:52]}  Kxd6 {[%clk 0:02:06]} 18. Nxf6 {[%clk 0:00:50]}  Qxf6 {[%clk 0:02:05]} 19. Be4 {[%clk 0:00:33]}  Raf8 {[%clk 0:01:50]} 20. Bf3 {[%clk 0:00:27]}  Ne5 {[%clk 0:01:48]} 21. Nd2 {[%clk 0:00:27]}  Qf4 {[%clk 0:01:45]} 22. Ne4+ {[%clk 0:00:23]}  Kc7 {[%clk 0:01:45]} 23. Qd1 {[%clk 0:00:18]}  Rxh7 {[%clk 0:01:46]} 24. cxd4 {[%clk 0:00:18]}  Qxh2+ {[%clk 0:01:33]} 25. Kf1 {[%clk 0:00:18]}  Nxf3 {[%clk 0:01:29]} 26. gxf3 {[%clk 0:00:15]}  Rd7 {[%clk 0:01:29]} 27. Rc1 {[%clk 0:00:13]}  Qh1+ {[%clk 0:01:28]} 28. Ke2 {[%clk 0:00:12]}  Qxf3+ {[%clk 0:01:28]} 29. Kf1 {[%clk 0:00:12]}  Qh1+ {[%clk 0:01:27]} 30. Ke2 {[%clk 0:00:12]}  Qxe4+ {[%clk 0:01:27]} 31. Kf1 {[%clk 0:00:11]}  Rxf2+ {[%clk 0:01:22]} 32. Kxf2 {[%clk 0:00:09]}  Rf7+ {[%clk 0:01:22]} 33. Kg3 {[%clk 0:00:07]}  Qf4+ {[%clk 0:01:20]} 34. Kg2 {[%clk 0:00:06]}  Rg7+ {[%clk 0:01:20]} 35. Kh3 {[%clk 0:00:05]}  Qh6+ {[%clk 0:01:20]} 36. Qh5 {[%clk 0:00:06]}  Qxh5# {[%clk 0:01:20]} 0-1


[Site "https://www.chess.com"]